bitfinex-derivatives/quotes_ETHF0:USTF0_20250807
["timestamp","ask_amount","ask_price","bid_price","bid_amount"]
[1754606871939,0.4248,3905.1,3904.1,3.2078]
[1754606872140,0.8379,3904.0,3903.9,4.12994296]
[1754606872553,0.8379,3904.6,3903.9,4.12994296]
[1754606872750,4.07059,3905.6,3904.4,3.2078]
[1754606873053,1.2636,3904.5,3904.4,3.2078]
[1754606873252,0.4131,3905.1,3904.5,0.51203]
[1754606873549,0.4248,3906.0,3905.2,0.51193]
[1754606873746,0.4248,3905.8,3905.6,3.2078]
[1754606873951,40.8,3905.9,3905.2,3.2078]
[1754606874147,0.4131,3906.6,3906.0,0.51184]
[1754606874352,4.48369,3906.6,3906.4,3.2078]
[1754606874554,3.2078,3907.3,3906.5,0.8419]
[1754606874749,3.2078,3907.3,3906.9,0.8419]
[1754606874952,3.2078,3907.7,3907.2,1.2487]
[1754606875146,3.2078,3907.7,3907.4,0.4055]
[1754606875348,3.2078,3907.7,3906.8,0.4055]
[1754606875643,4.07059,3907.6,3906.8,3.6133]
[1754606875854,4.07059,3907.6,3904.9,1.27995]
[1754606875855,0.4131,3907.3,3906.2,3.2078]
[1754606876049,3.6209,3907.3,3906.2,3.2078]
[1754606876356,0.4131,3907.0,3906.6,0.51176]
[1754606876543,0.8379,3907.0,3906.4,0.51178]
[1754606876747,4.90849,3906.9,3906.5,3.2078]
[1754606876943,0.8379,3908.9,3907.5,0.51163]
[1754606877148,0.4131,3908.7,3907.6,0.4055]
[1754606877354,3.2078,3907.8,3907.4,0.8419]
[1754606877546,3.2078,3907.8,3906.9,3.2078]
[1754606877547,0.4248,3907.7,3906.9,3.2078]
[1754606877749,4.07059,3907.0,3906.9,3.2078]
[1754606877948,4.07059,3907.0,3906.5,3.2078]
[1754606878248,3.2078,3907.6,3906.5,3.2078]
[1754606878249,4.07059,3906.6,3906.5,3.2078]
[1754606878461,1.2636,3907.2,3906.9,0.9999]
[1754606878648,3.2078,3907.3,3906.9,1.4054]
[1754606878951,0.4131,3907.1,3906.9,0.9999]
[1754606879148,5.33419,3907.0,3906.9,0.9999]
[1754606879355,2.0471,3907.8,3906.9,4.2077]
[1754606879548,4.49539,3907.7,3907.3,3.2078]
[1754606879748,1.2636,3907.6,3907.3,3.2078]
[1754606879943,40.8,3907.5,3907.3,3.2078]
[1754606880147,5.33419,3907.4,3907.3,3.2078]
[1754606880345,0.4248,3906.9,3905.6,0.4055]
[1754606880552,3.2078,3906.2,3905.3,3.71973]
[1754606880855,1.2636,3906.0,3904.9,3.6133]
[1754606881060,1.2636,3906.0,3905.0,0.33002779]
[1754606881256,1.2636,3906.0,3905.1,0.33002779]
[1754606881454,1.2636,3906.0,3905.0,0.51197]
[1754606881656,1.2636,3906.0,3904.9,3.6133]
[1754606881657,3.2078,3905.8,3904.9,3.71978]
[1754606881853,1.3794,3905.9,3905.5,0.9999]
[1754606882051,40.8,3906.1,3905.8,0.51186]
[1754606882251,40.8,3906.1,3905.8,0.7935]
[1754606882957,40.8,3906.1,3905.9,0.51186]
[1754606883257,0.7661,3906.0,3905.9,0.9999]
[1754606883455,2.2098,3906.0,3905.9,0.9999]
[1754606883855,1.3794,3906.0,3905.9,0.9999]
[1754606884067,2.2098,3906.0,3905.9,0.9999]
[1754606884355,2.2098,3906.0,3905.3,3.2078]
[1754606884356,1.3794,3905.9,3905.3,3.2078]
[1754606884657,0.8526,3905.8,3905.4,0.33386539]
[1754606884859,1.3794,3905.6,3905.5,0.33386539]
[1754606885254,40.8,3905.7,3905.6,1.3054]
[1754606885462,40.8,3905.7,3905.6,2.24316539]
[1754606885753,3.2078,3907.0,3906.2,0.7935]
[1754606885754,0.6133,3907.0,3906.2,0.7935]
[1754606885957,1.3794,3906.9,3906.6,3.2078]
[1754606886156,1.3794,3906.9,3906.6,3.71956]
[1754606886157,1.3794,3906.8,3906.6,3.71956]
[1754606886463,1.2851,3906.7,3906.6,3.2078]
[1754606886652,4.4929,3906.7,3906.6,0.23999853]
[1754606886956,3.2078,3906.7,3906.1,3.2078]
[1754606887149,3.2078,3907.4,3906.5,3.2078]
[1754606887358,5.2549,3907.8,3906.6,3.2078]
[1754606887662,2.0471,3907.8,3907.3,0.51167]
[1754606887863,2.0471,3907.8,3907.5,0.51164]
[1754606888153,2.0471,3907.8,3906.4,0.7935]
[1754606888354,2.0471,3907.8,3907.0,0.51171]
[1754606888561,2.0471,3907.8,3906.7,3.2078]
[1754606888562,0.51167,3907.4,3907.2,0.9999]
[1754606888750,0.51164,3907.6,3907.2,0.9999]
[1754606888954,3.2078,3907.6,3907.2,0.9999]
[1754606889154,2.0471,3907.8,3907.2,0.9999]
[1754606889351,2.0471,3907.8,3907.4,3.2078]
[1754606889648,0.51167,3907.4,3907.0,3.2078]
[1754606889852,0.51168,3907.3,3907.0,3.2078]
[1754606890053,41.31169,3907.2,3907.0,3.2078]
[1754606890250,0.51173,3906.9,3906.8,0.9999]
[1754606890458,24.444,3906.9,3905.5,3.2078]
[1754606890664,24.444,3906.9,3904.9,1.3974]
[1754606890665,0.51176,3906.7,3906.4,3.2078]
[1754606890867,3.37071384,3907.8,3906.4,3.2078]
[1754606890868,40.8,3906.5,3906.4,3.2078]
[1754606891058,40.8,3906.5,3906.4,4.7527]
[1754606891460,40.8,3906.5,3906.4,3.2078]
[1754606891965,40.8,3906.5,3905.6,3.2078]
[1754606892568,0.51183,3906.2,3905.6,3.2078]
[1754606892767,0.51185,3906.0,3905.6,3.2078]
[1754606893066,0.51186,3905.9,3905.6,3.2078]
[1754606893270,24.90184,3906.1,3905.6,3.2078]
[1754606893458,0.51187,3905.8,3905.6,3.2078]
[1754606893760,40.8,3906.5,3905.6,3.2078]
[1754606893963,0.51179,3906.4,3906.0,3.2078]
[1754606894262,0.51185,3906.0,3905.9,3.2078]
[1754606894761,0.51187,3905.9,3905.5,3.2078]
[1754606894963,40.8,3905.7,3905.5,3.2078]
[1754606895161,41.31189,3905.7,3905.5,3.2078]
[1754606895359,41.31189,3905.7,3904.9,0.87327479]
[1754606895360,0.51199,3905.0,3904.9,0.87327479]
[1754606895560,0.51195,3905.3,3904.8,4.08107479]
[1754606895756,24.306,3905.6,3904.8,4.08107479]
[1754606895967,24.306,3905.6,3905.5,3.2078]
[1754606896153,0.51196,3905.3,3905.1,3.2078]
[1754606896360,0.51194,3905.4,3905.1,3.2078]
[1754606896762,40.8,3905.2,3905.1,3.2078]
[1754606897864,40.8,3905.2,3905.1,5.3566]
[1754606898062,40.8,3905.2,3905.1,4.7527]
[1754606898571,40.8,3905.2,3905.1,4.0013]
[1754606898958,40.8,3905.2,3905.1,4.24138544]
[1754606899159,40.8,3905.2,3904.7,0.0268]
[1754606899359,24.186,3905.1,3904.9,0.7935]
[1754606899568,24.186,3905.1,3905.0,0.7935]
[1754606899756,0.51199,3905.0,3904.9,0.9999]
[1754606900365,41.31199,3905.0,3904.9,0.9999]
[1754606900860,65.44099,3905.0,3904.7,0.7935]
[1754606901068,65.44099,3905.0,3904.7,1.5449]
[1754606901570,64.929,3905.0,3904.5,3.2078]
[1754606901768,64.929,3905.0,3904.6,0.7514]
[1754606902067,0.512,3904.9,3904.5,3.2078]
[1754606902366,0.512,3904.9,3903.9,0.92214296]
[1754606902367,0.20429478,3904.9,3904.6,3.2078]
[1754606902568,64.929,3905.0,3904.8,0.7935]
[1754606902871,64.929,3905.0,3904.6,4.0013]
[1754606903066,64.929,3905.0,3904.6,3.2078]
[1754606903574,0.512,3904.9,3904.6,3.2078]
[1754606903763,65.44099,3905.0,3904.6,4.0013]
[1754606903963,0.51206,3904.5,3904.2,3.2078]
[1754606904172,24.007,3904.4,3904.2,3.2078]
[1754606904363,24.007,3904.4,3904.2,4.0013]
[1754606904565,40.8,3904.3,3904.2,3.2078]
[1754606904866,40.8,3904.3,3904.2,4.0013]
[1754606905072,40.8,3904.3,3904.2,4.7527]
[1754606905264,40.8,3904.3,3904.2,3.2078]
[1754606905464,40.8,3904.3,3904.2,4.0013]
[1754606905874,40.8,3904.3,3904.2,3.2078]
[1754606906363,38.9134,3905.4,3904.4,1.88407]
[1754606906563,38.9134,3905.4,3905.3,4.0013]
[1754606906760,0.20430975,3905.4,3905.3,5.3566]
[1754606906965,23.898,3905.7,3905.6,0.51191]
[1754606907259,24.09430975,3905.7,3905.6,2.66071]
[1754606907466,64.89430975,3905.7,3905.6,2.66071]
[1754606908074,41.00430975,3905.7,3905.6,2.66071]
[1754606908269,0.00106198,3906.5,3906.4,1.30531]
[1754606908477,0.00106198,3906.5,3906.4,5.86841]
[1754606908677,23.82106198,3906.5,3906.4,4.7527]
[1754606908874,23.82106198,3906.5,3906.4,3.2078]
[1754606909068,23.82106198,3906.5,3906.4,4.0013]
[1754606909473,0.00106198,3906.5,3906.4,5.3566]
[1754606909877,40.8,3907.3,3906.4,3.2078]
[1754606910170,40.8,3907.3,3907.2,5.8683]
[1754606910368,40.8,3907.3,3907.2,5.3566]
[1754606910568,40.8,3907.3,3907.2,5.8683]
[1754606910967,0.6133,3909.0,3908.3,0.51155]
[1754606911173,23.733,3909.0,3908.9,0.7514]
[1754606911375,65.1463,3909.0,3908.8,3.2078]
[1754606911873,40.8,3909.0,3908.9,2.2253]
[1754606912374,41.94748,3909.0,3908.8,3.2078]
[1754606912570,2.3369,3908.9,3908.8,3.2078]
[1754606913069,0.51154,3908.4,3908.3,3.2078]
[1754606913269,2.84848,3908.1,3908.0,0.9409]
[1754606913469,2.84848,3908.1,3907.5,3.2078]
[1754606913470,0.51158,3908.1,3907.5,3.2078]
[1754606913671,23.728,3908.0,3907.4,1.6084]
[1754606913872,0.51161,3907.9,3907.6,0.9409]
[1754606914078,2.84854,3907.7,3907.6,0.9409]
[1754606914372,2.84854,3907.7,3905.9,0.87327479]
[1754606914373,0.51171,3907.1,3907.0,3.2078]
[1754606914571,25.68751,3907.1,3907.0,2.6048]
[1754606914771,25.68751,3907.1,3906.0,0.6169]
[1754606914772,0.51173,3907.0,3906.9,3.2078]
[1754606915175,0.51173,3907.0,3906.3,3.2078]
[1754606915176,0.51179,3906.6,3906.3,3.2078]
[1754606915481,0.5118,3906.5,3906.2,3.2078]
[1754606915667,23.677,3906.6,3906.3,2.2253]
[1754606916172,23.677,3906.6,3906.2,3.71962]
[1754606916368,23.645,3907.5,3907.1,1.3999]
[1754606916573,23.645,3907.5,3907.4,5.4331]
[1754606916771,23.639,3908.0,3907.6,2.2253]
[1754606916970,0.8463,3907.9,3907.8,3.2078]
[1754606917171,0.8698,3907.9,3907.8,3.2078]
[1754606917679,23.639,3908.0,3907.8,3.2078]
[1754606917876,23.639,3908.0,3907.9,0.8254]
[1754606918080,40.9366,3909.1,3908.0,0.783]
[1754606918378,0.5115,3908.8,3908.2,3.2078]
[1754606918576,3.2078,3909.1,3908.2,3.2078]
[1754606918775,12.3784,3909.2,3908.8,3.2078]
[1754606919077,12.88984,3909.2,3909.0,0.8254]
[1754606919273,0.51146,3909.1,3908.8,3.2078]
[1754606919672,1.38128,3908.9,3908.8,3.2078]
[1754606919874,0.51147,3909.0,3908.8,3.2078]
[1754606920078,40.8,3908.9,3908.8,5.4331]
[1754606920379,40.8,3908.9,3908.8,3.2078]
[1754606920583,41.6698,3908.9,3908.8,3.2078]
[1754606921683,40.8,3908.9,3908.8,3.2078]
[1754606921876,64.303,3908.9,3908.8,3.2078]
[1754606922081,65.1728,3908.9,3908.8,3.2078]
[1754606922968,64.303,3908.9,3908.8,3.2078]
[1754606923168,65.1728,3908.9,3908.8,3.2078]
[1754606923371,64.303,3908.9,3908.8,3.2078]
[1754606923577,65.1728,3908.9,3908.8,3.2078]
[1754606923979,40.8,3908.9,3908.8,3.2078]
[1754606924279,64.178,3908.9,3908.8,4.0332]
[1754606924481,64.38729494,3908.9,3908.8,4.0332]
[1754606924978,65.25709494,3908.9,3908.8,3.2078]
[1754606925174,65.0478,3908.9,3908.8,3.2078]
[1754606926384,0.51156,3908.3,3908.2,4.2077]
[1754606926576,24.41096,3908.3,3908.2,4.2077]
[1754606926783,0.51156,3908.3,3908.2,0.9999]
[1754606926975,0.51164,3907.7,3907.6,3.2078]
[1754606927183,0.51162,3907.8,3907.6,3.2078]
[1754606927479,23.9293,3907.7,3907.6,4.2077]
[1754606927675,23.9293,3907.7,3906.9,3.2078]
[1754606927676,2.55828,3907.6,3906.9,3.2078]
[1754606927880,0.51169,3907.3,3906.7,0.783]
[1754606928180,23.255,3907.2,3906.6,0.51178]
[1754606928381,64.055,3907.2,3906.8,2.2253]
[1754606928578,64.055,3907.2,3907.0,1.6084]
[1754606928778,64.055,3907.2,3907.1,1.6084]
[1754606928976,64.0755,3907.2,3906.5,4.0332]
[1754606929183,0.53226,3906.8,3906.6,0.783]
[1754606929380,23.208,3906.7,3906.6,0.783]
[1754606929778,3.2283,3907.4,3906.6,1.6084]
[1754606929979,0.51175,3906.9,3906.7,0.783]
[1754606930179,23.176,3906.8,3906.7,0.783]
[1754606930380,23.1965,3906.8,3906.7,0.783]
[1754606930582,63.9965,3906.8,3906.7,0.783]
[1754606930987,0.51175,3906.7,3906.1,3.9908]
[1754606931182,63.976,3906.8,3906.2,1.6084]
[1754606931387,23.151,3906.7,3906.5,1.6084]
[1754606931688,23.151,3906.7,3906.6,2.2253]
[1754606931876,40.8,3906.8,3906.7,0.783]
[1754606932082,63.934,3906.8,3906.7,2.2253]
[1754606932780,63.934,3906.8,3906.7,0.783]
[1754606932985,63.9545,3906.8,3906.7,0.783]
[1754606933186,40.8,3906.8,3906.7,2.2253]
[1754606933385,63.9,3906.8,3906.7,1.6084]
[1754606933786,40.8,3906.8,3906.7,1.6084]
[1754606934088,63.891,3906.8,3906.7,1.6084]
[1754606934486,63.891,3906.8,3906.7,2.2253]
[1754606934682,40.8,3906.8,3906.7,2.2253]
[1754606934887,63.838,3906.8,3906.7,2.2253]
[1754606936190,63.838,3906.8,3906.7,3.2252]
[1754606936893,63.838,3906.8,3906.7,2.6083]
[1754606937190,40.8,3906.8,3906.7,3.2252]
[1754606937396,63.743,3906.8,3906.7,3.2252]
[1754606938496,63.743,3906.8,3906.7,2.2253]
[1754606939093,64.25474,3906.8,3906.6,0.9999]
[1754606939595,64.25474,3906.8,3906.6,1.7829]
[1754606939792,41.31174,3906.8,3906.7,0.783]
[1754606940000,64.16074,3906.8,3906.7,0.783]
[1754606940195,64.16074,3906.8,3906.6,0.9999]
[1754606940395,64.16074,3906.8,3905.8,0.89369719]
[1754606940396,0.51187,3905.8,3905.7,3.9908]
[1754606940594,23.33887,3905.8,3905.7,3.9908]
[1754606940791,0.51184,3906.1,3905.8,0.6169]
[1754606941094,0.51186,3905.9,3905.7,3.2078]
[1754606941303,3.2078,3906.4,3905.8,0.6169]
[1754606941601,0.52816,3905.9,3905.7,3.2078]
[1754606941792,0.51186,3905.9,3905.8,0.8342]
[1754606941999,23.29086,3905.9,3905.8,0.8342]
[1754606942201,23.27886,3905.9,3905.8,0.8342]
[1754606942500,0.51193,3905.3,3905.2,4.042]
[1754606942799,22.754,3905.3,3905.2,4.042]
[1754606943191,22.7703,3905.3,3905.2,4.042]
[1754606943705,22.7703,3905.3,3905.2,3.2078]
[1754606944002,0.51199,3904.9,3904.8,0.8342]
[1754606944199,22.71,3904.9,3904.8,1.7056]
[1754606944393,22.7523,3904.9,3904.8,0.8342]
[1754606944595,22.7686,3904.9,3904.8,0.8342]
[1754606945101,0.512,3904.8,3904.6,3.2078]
[1754606945406,0.0163,3904.7,3904.6,4.042]
[1754606945600,0.51196,3905.1,3904.8,2.3206]
[1754606945803,22.641,3905.0,3904.9,2.3206]
[1754606945997,2.0483,3905.5,3904.8,3.2078]
[1754606946302,2.0483,3905.5,3905.3,0.51193]
[1754606946606,22.657,3906.1,3905.3,2.3206]
[1754606946806,22.657,3906.1,3905.7,3.2078]
[1754606947101,23.16883,3906.1,3905.4,2.3206]
[1754606947406,23.81184,3906.1,3905.4,2.3206]
[1754606947704,0.51184,3906.0,3905.4,1.4492]
[1754606947897,0.51184,3906.0,3905.5,0.8714]
[1754606948093,23.3,3906.1,3905.5,0.8714]
[1754606948298,22.605,3906.0,3905.8,0.51186]
[1754606948496,22.596,3906.0,3905.9,1.7056]
[1754606948704,1.9719,3905.6,3905.2,3.2078]
[1754606949000,23.405,3905.5,3905.2,3.8228]
[1754606949401,24.048,3905.5,3905.2,3.8228]
[1754606949602,0.817,3905.4,3905.2,3.8228]
[1754606949797,1.46,3905.3,3905.2,3.2078]
[1754606950002,42.9678,3905.3,3905.2,3.2078]
[1754606950700,42.9678,3905.3,3904.1,1.3405457]
[1754606950701,1.46,3905.2,3904.6,3.2078]
[1754606950898,0.817,3905.0,3904.7,0.615]
[1754606951101,0.817,3905.0,3904.8,2.3206]
[1754606951609,22.503,3904.9,3904.6,3.2078]
[1754606951809,22.503,3904.9,3904.8,2.3206]
[1754606952503,23.83198,3904.9,3904.8,0.8714]
[1754606952697,23.83198,3904.9,3904.6,3.2078]
[1754606952698,2.67981,3904.7,3904.6,3.2078]
[1754606953300,43.47981,3904.7,3904.6,3.2078]
[1754606953703,43.47981,3904.7,3903.9,1.53714296]
[1754606953704,0.51202,3904.6,3904.0,3.2078]
[1754606953904,22.92604,3904.5,3904.2,2.3206]
[1754606954110,22.92604,3904.5,3904.0,3.2078]
[1754606954307,0.51202,3904.6,3904.1,2.3206]
[1754606954509,0.51202,3904.6,3904.0,3.2078]
[1754606954510,0.817,3904.1,3904.0,3.2078]
[1754606954703,24.5748,3904.1,3904.0,3.2078]
[1754606955205,65.3748,3904.1,3904.0,3.2078]
[1754606955405,64.667,3904.1,3904.0,3.2078]
[1754606955604,63.207,3904.1,3904.0,5.5284]
[1754606956007,0.5121,3904.0,3903.9,0.92214296]
[1754606956203,40.8,3904.1,3904.0,1.4864]
[1754606956409,63.135,3904.1,3904.0,2.3206]
[1754606956611,2.6799,3904.0,3903.9,0.92214296]
[1754606957011,2.05331,3903.2,3903.1,3.2078]
[1754606957209,23.8571,3903.2,3903.1,3.2078]
[1754606957412,64.6571,3903.2,3903.1,3.2078]
[1754606957809,40.8,3903.2,3903.1,5.5284]
[1754606958116,63.078,3903.2,3903.1,5.5284]
[1754606958515,63.078,3903.2,3903.1,3.2078]
[1754606958516,63.895,3903.2,3903.1,3.2078]
[1754606958715,64.6191,3903.2,3903.1,3.2078]
[1754606959513,0.51222,3903.1,3902.6,4.6942]
[1754606959707,0.8333,3903.0,3902.6,4.657]
[1754606960005,0.51227,3902.7,3902.6,3.2078]
[1754606960207,0.817,3902.3,3901.7,2.3206]
[1754606960516,0.0163,3902.4,3901.8,1.4864]
[1754606960517,0.817,3902.0,3901.8,1.4864]
[1754606960715,40.8,3901.9,3901.8,2.3206]
[1754606960912,0.0303,3903.0,3901.9,1.96156]
[1754606960913,3.2078,3902.9,3901.9,1.96156]
[1754606961119,22.198,3902.8,3902.7,2.3206]
[1754606961306,21.3131,3902.8,3902.7,2.3206]
[1754606961818,62.1131,3902.8,3902.7,2.3206]
[1754606962420,40.8,3902.8,3902.7,2.3206]
[1754606962620,62.983,3902.8,3902.7,2.3206]
[1754606962913,62.938,3902.8,3902.7,2.3206]
[1754606963113,36.876,3903.3,3902.9,0.615]
[1754606963417,22.126,3903.2,3903.1,2.3206]
[1754606963615,22.124,3903.4,3903.2,0.8342]
[1754606963821,22.113,3903.4,3903.3,1.4864]
[1754606964119,62.913,3903.4,3903.3,0.8714]
[1754606964416,2.2642,3902.9,3902.8,0.0847]
[1754606964613,24.3572,3902.9,3902.2,3.2078]
[1754606964812,24.3572,3902.9,3901.4,3.2078]
[1754606964813,0.51242,3901.5,3901.4,3.2078]
[1754606965115,40.8,3901.5,3901.1,1.4492]
[1754606965323,22.106,3901.4,3901.3,1.4492]
[1754606965523,1.15546,3901.2,3901.0,3.2078]
[1754606965720,22.1,3901.1,3901.0,3.2078]
[1754606965915,22.1,3901.1,3900.7,1.4492]
[1754606966116,22.1,3901.1,3900.9,2.37205213]
[1754606966310,22.1,3901.1,3901.0,0.8714]
[1754606967513,1.97248,3901.0,3900.9,0.92285213]
[1754606969124,0.51258,3900.3,3899.9,0.8714]
[1754606969319,0.51258,3900.3,3899.7,1.4492]
[1754606969320,0.643,3899.9,3899.7,0.8714]
[1754606969527,23.449,3899.8,3899.7,0.8714]
[1754606969823,39.0,3900.3,3900.2,1.34679]
[1754606970022,21.979,3900.8,3900.0,3.2078]
[1754606970222,21.994,3900.8,3900.1,0.8714]
[1754606970430,21.994,3900.8,3900.2,0.51258]
[1754606970632,21.994,3900.8,3900.4,0.8714]
[1754606970825,40.8,3900.7,3900.1,0.8714]
[1754606971428,0.817,3900.6,3900.1,0.8714]
[1754606971634,40.8,3900.7,3900.1,0.9681]
[1754606971927,21.951,3901.1,3900.6,0.9274]
[1754606972132,21.951,3901.1,3900.6,0.9204]
[1754606972334,21.951,3901.1,3900.5,3.2078]
[1754606972534,22.8281,3901.1,3900.9,0.9204]
[1754606972730,21.951,3901.1,3900.9,0.9204]
[1754606972925,41.6771,3901.0,3900.5,3.2078]
[1754606973129,40.8,3901.0,3900.6,0.51953]
[1754606973330,40.8,3901.0,3900.8,0.007]
[1754606973632,40.8,3901.0,3900.9,0.9204]
[1754606974233,41.6771,3901.0,3900.9,0.9204]
[1754606974536,40.8,3901.0,3900.9,0.9204]
[1754606974934,41.6771,3901.0,3900.9,0.9204]
[1754606975330,2.26519,3900.9,3900.7,0.9999]
[1754606975530,40.8,3901.0,3900.7,0.9999]
[1754606975531,22.7231,3900.8,3900.7,0.9999]
[1754606975734,22.7231,3900.8,3900.7,1.9203]
[1754606975934,24.2803,3900.8,3900.7,0.9999]
[1754606976137,65.0803,3900.8,3900.7,0.9999]
[1754606976336,63.5231,3900.8,3900.7,0.9999]
[1754606976535,63.5231,3900.8,3900.7,0.9204]
[1754606976738,41.6771,3900.8,3900.7,0.9204]
[1754606976931,63.4861,3900.8,3900.7,0.9204]
[1754606977127,62.599,3900.8,3900.7,0.9204]
[1754606977733,21.799,3901.2,3900.6,0.9204]
[1754606977939,21.799,3901.2,3900.3,1.28841]
[1754606977940,0.8771,3902.0,3901.1,0.9274]
[1754606978136,0.8771,3902.0,3901.7,0.9204]
[1754606978632,0.8771,3902.0,3901.6,3.2148]
[1754606978831,3.43322663,3902.2,3902.0,0.9204]
[1754606979032,3.2078,3902.2,3901.8,0.51237]
[1754606979240,0.51232,3902.2,3901.6,3.2148]
[1754606979441,1.38942,3902.2,3901.8,0.9204]
[1754606979732,1.38942,3902.2,3901.6,3.2078]
[1754606979733,0.8771,3901.7,3901.6,3.2078]
[1754606979938,0.8771,3901.7,3901.6,4.1282]
[1754606980335,0.8771,3901.7,3901.6,4.64059]
[1754606980536,0.22542663,3902.0,3901.6,4.2077]
[1754606980736,40.8,3902.1,3901.6,4.2077]
[1754606980944,40.8,3902.1,3901.9,0.9204]
[1754606981242,22.5711,3902.6,3902.3,0.9204]
[1754606981439,4.765,3903.1,3902.0,3.2078]
[1754606981634,46.9543,3903.1,3902.5,4.1282]
[1754606981836,0.22579279,3903.0,3902.5,4.1282]
[1754606982031,0.22579279,3903.0,3902.6,0.9204]
[1754606982233,0.22579279,3903.0,3902.5,3.2078]
[1754606982440,0.73800279,3903.0,3902.4,0.9999]
[1754606982737,0.51229,3902.4,3902.1,4.1282]
[1754606982942,1.7527,3902.3,3902.1,4.1282]
[1754606983136,0.8771,3902.2,3902.1,4.1282]
[1754606983333,1.7527,3902.2,3902.1,3.2078]
[1754606983634,0.8771,3902.2,3902.1,4.2077]
[1754606983835,0.8771,3902.2,3902.1,5.1281]
[1754606984141,0.8771,3902.2,3902.1,4.1282]
[1754606984337,2.4343,3902.7,3902.1,4.64052]
[1754606984538,0.51226,3902.6,3902.1,4.1282]
[1754606984833,0.8771,3902.6,3902.5,3.2078]
[1754606985038,0.8771,3902.6,3902.0,0.9999]
[1754606985039,2.94663,3902.1,3902.0,0.9999]
[1754606985640,43.74663,3902.1,3902.0,0.9999]
[1754606986938,0.51236,3901.9,3901.1,1.35756]
[1754606987241,3.2078,3901.7,3901.1,1.35756]
[1754606987541,21.566,3902.0,3901.6,2.4364]
[1754606987744,1.5587,3901.9,3901.5,2.5159]
[1754606987943,0.8756,3901.7,3901.5,2.5159]
[1754606988147,0.8756,3901.7,3901.5,1.516]
[1754606988543,3.72017,3901.8,3901.5,1.516]
[1754606988840,0.51237,3901.8,3901.1,0.51246]
[1754606989044,1.3633131,3904.5,3903.8,0.5121]
[1754606989233,21.607,3904.1,3903.8,0.5121]
[1754606989543,1.54442848,3904.0,3903.9,2.4364]
[1754606990537,0.8756,3903.9,3903.6,4.7238]
[1754606990733,0.8756,3903.8,3903.6,4.7238]
[1754606991645,1.0,3904.0,3903.8,1.516]
[1754606991844,1.0,3904.0,3903.7,1.9203]
[1754606991845,1.0,3904.0,3903.9,2.4364]
[1754606992440,0.8756,3903.9,3903.7,0.9999]
[1754606992639,0.8756,3903.8,3903.7,0.9999]
[1754606992840,1.5587,3903.9,3903.7,2.5159]
[1754606993045,1.0,3904.0,3903.7,1.9203]
[1754606993249,1.0,3904.0,3903.8,2.4364]
[1754606993544,1.0,3904.0,3903.9,2.4364]
[1754606994541,0.8756,3904.7,3903.7,1.51201]
[1754606994542,0.8756,3906.0,3904.9,1.5108]
[1754606994737,0.8756,3906.0,3904.1,1.28016]
[1754606994738,21.5,3906.0,3905.3,3.2078]
[1754606994934,41.6756,3905.9,3905.8,3.2078]
[1754606995140,41.6756,3905.9,3905.4,2.1817]
[1754606995344,42.18743,3905.9,3905.3,3.2078]
[1754606995648,0.51189,3905.5,3905.3,3.2078]
[1754606995842,0.51189,3905.5,3905.3,4.7238]
[1754606996039,3.2078,3906.2,3905.5,2.1817]
[1754606996343,2.0483,3905.5,3905.3,0.5119]
[1754606996543,2.0483,3905.5,3905.4,3.2078]
[1754606997046,2.0483,3905.5,3905.4,5.3895]
[1754607000652,2.0483,3905.5,3905.4,3.2078]
[1754607000951,2.0483,3905.5,3905.4,5.96795747]
[1754607001444,2.7299,3905.5,3905.4,3.53155747]
[1754607001642,2.0483,3905.5,3905.4,6.15660204]
[1754607001849,3.1157,3905.5,3905.4,6.17790204]
[1754607002140,4.39948,3905.5,3905.4,5.40210204]
[1754607002349,5.26798,3905.5,3905.4,4.53130204]
[1754607002649,0.51193,3905.1,3905.0,3.2078]
[1754607002848,24.47673,3905.1,3905.0,3.4425724]
[1754607003152,24.47673,3905.1,3905.0,3.2078]
[1754607003341,24.47673,3905.1,3905.0,3.44253471]
[1754607004351,65.27673,3905.1,3905.0,3.44253471]
[1754607004941,65.27673,3905.1,3905.0,0.23473471]
[1754607005143,3.21978,3904.7,3904.6,3.2078]
[1754607005341,2.0483,3905.5,3904.6,4.313354]
[1754607005543,2.0483,3905.5,3905.4,5.8485]
[1754607005747,2.0483,3905.5,3905.4,6.083254]
[1754607006555,3.1157,3905.5,3905.4,5.089154]
[1754607006953,2.0483,3905.5,3905.4,6.083254]
[1754607007348,5.26798,3905.5,3905.4,3.542554]
[1754607007647,5.26798,3905.5,3905.4,0.334754]
[1754607008350,0.51194,3905.0,3904.9,3.2078]
[1754607008548,0.51194,3905.0,3904.9,3.44782256]
[1754607008549,3.21974,3905.0,3904.9,3.44782256]
[1754607008949,3.21974,3905.0,3904.9,3.55292256]
[1754607009342,3.21974,3905.0,3904.9,0.34512256]
[1754607009546,3.21974,3905.0,3904.2,3.2078]
[1754607009547,3.21984,3904.3,3904.2,3.2078]
[1754607009956,0.51207,3904.1,3903.9,1.7699]
[1754607010150,1.0674,3904.0,3903.9,0.7758]